Workbook

Sheet Intro
B1: FERTILIZER ENVIRONMENTAL EXPOSURE (FEE) TOOL
B2: INTRODUCTION
C17: SPERC | D17: Code | E17: Description | F17: Air (%) | G17: Soil (%) | H17: Surface water (%)
C18: 1 | D18: 8e.1.v1 | E18: Outdoor use - direct application of solid fertilizers to soil; surface spreading | F18: 0 | G18: 100 | H18: 0
C19: 2 | D19: 8e.2.v1 | E19: Outdoor use - direct application of solid or liquid fertilizers to soil; incorporation, placement, mixing, seed treatment, drip irrigation | F19: 0 | G19: 100 | H19: 0
C20: 3 | D20: 8e.3.v1 | E20: Outdoor use - application of fertilizers by helicopter | F20: 0 | G20: 100 | H20: 3.32
C21: 4 | D21: 8e.4.v1 | E21: Outdoor use - spray application of liquid fertilizers; soil surface spreading, sprinkler, pivot, foliar spray, slurry | F21: 0 | G21: 100 | H21: =15.7/10 -> 1.57
B75: Tool developed by ARCHE Consulting
E77: Contact details:
E78: ARCHE Consulting - Koen Oorts
E79: koen.oorts@arche-consulting.be
B81: Version log
B82: Version | C82: Date | D82: Implemented changes | H82: Authors
B83: 1.1 | C83: 2017-09-25 | D83: V1 final first version FEE-tool | H83: Koen Oorts, Sabine Navis

Sheet Input
B1: FERTILIZER ENVIRONMENTAL EXPOSURE (FEE) TOOL
B2: INPUT
B3: 1. Substance | C3: -> Other
B4: 2. Specific Environmental Release Category (SpERC) | C4: SPERC 2: Outdoor use - direct application of solid or liquid fertilizers to soil; incorporation, placement, mixing, seed treatment, drip irrigation
B5: 3. Single or multiple applications per growing season? | C5: Single
B6: Total annual fertilizer use rate | C6: 300 | D6: [kg/ha/year] | E6: =IF(AND(C5="Single",Number_of_applications>1),"ERROR: in case of more than 1 application per growing season select 'Multiple' at Step 3"," ") -> 
B7: =IF(C5="Multiple"," Number of applications","") ->  | D7: =IF(C5="Multiple","-","") ->  | E7: =IF(AND(C5="Single",Number_of_applications>1),"ERROR: in case of single application, leave field empty or enter 1",IF(AND(C5="Multiple",Number_of_applications<2),"ERROR: in case of multiple applications per growing season, value should be >1"," ")) -> 
B8: =IF(C5="Multiple"," Time between applications","") ->  | D8: =IF(C5="Multiple","[days]","") -> 
B9: =IF(C5="Multiple"," Fertilizer use rate per application","") ->  | C9: =IF(Single_Multi="Multiple",APPL_rate_year/Number_of_applications,"") ->  | D9: =IF(C5="Multiple","[kg/ha]","") -> 
B10: 4. Refinement options | C10: 100 | D10: =IF(Substance="-> Other","Provide % available for runoff","") -> Provide % available for runoff
B11: Crop type | C11: Cereals, spring
B12: Crop growth stage (BBCH) | C12: Bare soil, BBCH 00-09
B13: European crop yield scenario | C13: Low
B14: Crop substance concentration | C14: 10 | D14: [g/t] | E14: not mandatory, only enter if specific data are available
B15: Crop yield | C15: 100 | D15: [t/ha] | E15: not mandatory, only enter if specific data are available
B16: 5. Risk management measures (RMM) * | D16: (% drift reduction)
B17: * To be justified, and translated into specific RMMs in correspondence with (national) requirements and product labelling
B19: ="Substance properties: " & Substance & " **" -> Substance properties: -> Other ** | C19: Standard parameters | E19: Unit | F19: Comments
B20: Substance name | C20: =IF(Substance="-> Other","Enter substance name",Substance) -> Enter substance name | D20: CN2 | E20: -
B21: Molecular weight | C21: =IF(MOLW_M>0,"",VLOOKUP(Substance,'Micro-nutrient endpoints'!$B$4:$Q$9,3,FALSE)) ->  | D21: 40 | E21: g/mol
B22: Water solubility at 25°C | C22: =IF(SOL_M>0,"",VLOOKUP(Substance,'Micro-nutrient endpoints'!$B$4:$Q$9,4,FALSE)) ->  | D22: 100 | E22: mg/L | F22: Water solubility; value cannot be 0
B23: Vapour pressure at 25°C | C23: =IF(VP_M>0,"",VLOOKUP(Substance,'Micro-nutrient endpoints'!$B$4:$Q$9,5,FALSE)) ->  | D23: 1e-10 | E23: Pa | F23: Vapour pressure; value cannot be 0
B24: Henry coefficient | C24: =IF(Henry_M>0,"",VLOOKUP(Substance,'Micro-nutrient endpoints'!$B$4:$Q$9,6,FALSE)) -> Provide manual input (or enter mol.weight, solubility and vapour pressure) | E24: Pa*m3/mol | F24: Henry coefficient; value cannot be 0
B25: Volatilization during application | C25: =IF(Substance="-> Other","Select from dropdown menu",0) -> Select from dropdown menu | D25: < 0.01 mPa | E25: % dropdown menu | F25: For organics: % volatilization depending on volatility class selected from dropdown menu
B26: Log octanol-water partition coefficient | D26: 0 | E26: - | F26: Not relevant for inorganics
B27: Partition coefficient organic carbon-water (Koc) | D27: 10 | E27: L/kg dw | F27: Not relevant for inorganics
B28: Partition coefficient solid-water in soil (Kpsoil) | C28: =IF(Kpsoil_M="",(VLOOKUP(Substance,'Micro-nutrient endpoints'!B4:Q9,7,FALSE)),"") -> Provide manual input for Kpsoil or Koc | E28: L/kg dw | F28: Substance specific measured Kpsoil values are used as default input
B29: Partition coefficient solid-water of susp. matter (Kpsusp) | C29: =IF(Kpsusp_M="",(VLOOKUP(Substance,'Micro-nutrient endpoints'!B4:Q9,8,FALSE)),"") -> Provide manual input | E29: L/kg dw | F29: Substance specific measured Kpsusp values are used as default input
B30: Biodegradability class | C30: =IF(Substance="-> Other","Select from dropdown menu","Not biodegradable") -> Select from dropdown menu | D30: Readily biodegradable | E30: dropdown menu | F30: For organics: select from drop-down menu. For inorganics: default is set to 1000000 days
B31: Half-life biodegradation in soil | C31: =IF(AND(Substance="-> Other",Half_life_soil_M>0),"",DT50_soil) ->  | D31: 5 | E31: days
B32: Half-life biodegradation in surface water | C32: =IF(AND(Substance="-> Other",DT50bio_water_sed_M>0),"",DT50_water) ->  | D32: 30 | E32: days
B33: PEC regional soil | C33: =IF(Substance="-> Other","Provide manual input",(VLOOKUP(Substance,'Micro-nutrient endpoints'!$B$4:$Q$9,9,FALSE))) -> Provide manual input | D33: 10 | E33: mg/kg dw | F33: Provide manual input if "Other" substance is selected at step 1
B34: PEC regional freshwater | C34: =IF(Substance="-> Other","Provide manual input",(VLOOKUP(Substance,'Micro-nutrient endpoints'!$B$4:$Q$9,10,FALSE))) -> Provide manual input | D34: 10 | E34: µg/L
B35: PEC regional sediment | C35: =IF(Substance="-> Other","Provide manual input",(VLOOKUP(Substance,'Micro-nutrient endpoints'!$B$4:$Q$9,11,FALSE))) -> Provide manual input | D35: 10 | E35: mg/kg
B36: PNEC soil | C36: =IF(Substance="-> Other","Provide manual input",(VLOOKUP(Substance,'Micro-nutrient endpoints'!$B$4:$Q$8,13,FALSE))) -> Provide manual input | D36: 5 | E36: mg/kg dw | F36: Provide manual input if "Other" substance is selected at step 1
B37: PNEC freshwater | C37: =IF(Substance="-> Other","Provide manual input",(VLOOKUP(Substance,'Micro-nutrient endpoints'!$B$4:$Q$8,14,FALSE))) -> Provide manual input | D37: 5 | E37: µg/L
B38: PNEC sediment | C38: =IF(Substance="-> Other","Provide manual input",(VLOOKUP(Substance,'Micro-nutrient endpoints'!$B$4:$Q$8,15,FALSE))) -> Provide manual input | D38: 5 | E38: mg/kg
B39: ** Standard parameters for micro-nutrients are based on information from the REACH dissemination website (unless otherwise stated); please check carefully for consistency with most recent dossier information
B41: ="Scenario information: " &SpERC -> Scenario information: SPERC 2: Outdoor use - direct application of solid or liquid fertilizers to soil; incorporation, placement, mixing, seed treatment, drip irrigation | C41: Input parameters e-fate model
C42: Default assessment | D42: Refined assessment | E42: Unit | F42: Comments
B43: Fraction available for drift (during application) | C43: =VLOOKUP(SpERC,'Crop parameters'!B4:D38,3,FALSE) -> 0 | D43: =IF(Crop_choice="Generic crop","",IF(SpERC="SPERC 4: Outdoor use - spray application of liquid fertilizers; soil surface spreading, sprinkler, pivot, foliar spray, slurry",VLOOKUP(Crop_choice,'Crop parameters'!B4:D38,3,FALSE),"")) ->  | E43: % | F43: Default: based upon choice of SPERC; refined: based on crop type
B44: Drift refinement, after reduction based on RMM | C44: not considered | D44: =IF(AND(SpERC="SPERC 4: Outdoor use - spray application of liquid fertilizers; soil surface spreading, sprinkler, pivot, foliar spray, slurry",Drift_refined<>"",Drift_M>0),Drift_refined*(1-Drift_M/100),IF(AND(SpERC="SPERC 4: Outdoor use - spray application of liquid fertilizers; soil surface spreading, sprinkler, pivot, foliar spray, slurry",Crop_choice="Generic crop",Drift_M>0),Drift_D*(1-Drift_M/100),IF(AND(SpERC="SPERC 3: Outdoor use - application of fertilizers by helicopter",Drift_M>0),Drift_D*(1-Drift_M/100),""))) ->  | E44: % | F44: Refined assessment only: drift reduction based upon selection RMM
B45: Fraction available for run-off (30 days after application) | C45: =IF(AND(Substance="-> Other",Runoff_M>0),Runoff_M,VLOOKUP(SpERC,'SpERC details'!B4:C8,2,FALSE)) -> 100 | D45: =IF(AND(SpERC="SPERC 4: Outdoor use - spray application of liquid fertilizers; soil surface spreading, sprinkler, pivot, foliar spray, slurry",Crop_interception_M<>""),Runoff_D*(1-Crop_interception_M/100),IF(AND(SpERC="SPERC 1: Outdoor use - direct application of solid fertilizers to soil; surface spreading",Crop_interception_M<>""),Runoff_D*(1-Crop_interception_M/100),IF(AND(SpERC="SPERC 3: Outdoor use - application of fertilizers by helicopter",Crop_interception_M<>""),Runoff_D*(1-Crop_interception_M/100),""))) ->  | E45: % | F45: Depending on crop cover (SPERC 3 and 4) or developmental stage (SPERC 1)
B46: Runoff reduction | C46: not considered | D46: =IF(Crop_cover="Bare soil, BBCH 00-09","",IF(Crop_choice="Generic crop",VLOOKUP(SpERC,'Crop parameters'!B5:N38,MATCH(Crop_cover,'Crop parameters'!B5:N5,FALSE),FALSE),IF(SpERC="SPERC 4: Outdoor use - spray application of liquid fertilizers; soil surface spreading, sprinkler, pivot, foliar spray, slurry",VLOOKUP(Crop_choice,'Crop parameters'!B5:N38,MATCH(Crop_cover,'Crop parameters'!B5:N5,FALSE),FALSE),VLOOKUP(SpERC,'Crop parameters'!B5:N38,MATCH(Crop_cover,'Crop parameters'!B5:N5,FALSE),FALSE)))) ->  | E46: % | F46: Only for refined assessment: based on selected crop type and growth stage
B47: Crop substance concentration | C47: not considered | D47: =IF(Crop_conc_M>0,Crop_conc_M,IF(Substance="-> Other","Provide manual input",IF(Crop_conc_M="",(VLOOKUP(Crop_choice,'Crop parameters'!B5:G38,MATCH(Substance,'Crop parameters'!B5:G5,FALSE),FALSE))))) -> 10 | E47: g substance/t | F47: Based upon literature search for micronutrients, or manual input
B48: Crop yield | C48: not considered | D48: =IF(Crop_yield_M>0,Crop_yield_M,IF(Substance="-> Other","Provide manual input",IF(Crop_yield_M="",VLOOKUP(Crop_choice,'Crop parameters'!B5:J38,MATCH(Crop_quality,'Crop parameters'!B5:J5,FALSE),FALSE)))) -> 100 | E48: t yield/ha | F48: Based on crop specific Eurostat data (European crop yield scenarios) or manual input
B49: Crop offtake | C49: not considered | D49: =Crop_conc_D/1000*Crop_yield_D -> 1 | E49: kg substance/ha/y | F49: Calculated from crop substance concentration and crop yield scenario
F52: Tool developed by ARCHE Consulting © 2017

Sheet Output
B1: FERTILIZER ENVIRONMENTAL EXPOSURE (FEE) TOOL
B2: OUTPUT
B4: Exposure scenario
B5: Substance | C5: =Substance -> -> Other
B6: SpERC | C6: =SpERC -> SPERC 2: Outdoor use - direct application of solid or liquid fertilizers to soil; incorporation, placement, mixing, seed treatment, drip irrigation
B7: Application rate (total) | C7: =APPL_rate_year & " " & "kg/ha/year" -> 300 kg/ha/year
B8: Number, timing applications | C8: =IF(Single_Multi="Single","1 application",Number_of_applications & " applications, " & Time_between_applications & " days between applications") -> 1 application
B9: Crop type | C9: =Crop_choice -> Cereals, spring
B10: Crop growth stage | C10: =Crop_cover -> Bare soil, BBCH 00-09
B11: European crop yield scenario | C11: =Crop_quality -> Low
B12: Risk management measures | C12: =IF(Drift_M<>"",Drift_M&"% drift reduction","None") -> None
B14: Emission estimate | C14: [kg/ha] | D14: [%]
B15: Volatilization | C15: =App_eq*Vol_perc/100 -> 3 | D15: =C15/$C$20*100 -> 0.9868421053
B16: Drift | C16: =App_eq*Drift_perc*0.1/100 -> 0 | D16: =C16/$C$20*100 -> 0
B17: Runoff | C17: =App_eq*Runoff_perc/100 -> 300 | D17: =C17/$C$20*100 -> 98.68421053
B18: Crop offtake | C18: =Crop_offtake -> 1 | D18: =C18/$C$20*100 -> 0.3289473684
B19: Soil accumulation | C19: =Input_soil -> 0 | D19: =C19/$C$20*100 -> 0
C20: =SUM(C15:C19) -> 304 | D20: =SUM(D15:D19) -> 100
C21: Exposure assessment | I21: Effect assessment | K21: Risk characterisation
B22: Environmental compartment | C22: C local year 1 | D22: C local year 10 | E22: PEC regional | F22: PEC total year 1 | G22: PEC total year 10 | H22: Unit | I22: PNEC | J22: Unit | K22: RCR year 1 | L22: RCR year 10
B23: Soil (agricultural) | C23: =(1/(ktotal*time)*Csoil1*(1-EXP(-ktotal*time))) -> 0 | D23: =(1/(ktotal*time)*Csoil10*(1-EXP(-ktotal*time))) -> 0 | E23: =IF(PECreg_soil_M>0,PECreg_soil_M,(VLOOKUP(Substance,'Micro-nutrient endpoints'!$B$4:$Q$9,9,FALSE))) -> 10 | F23: =Csoil_1_30+PEC_regional_soil -> 10 | G23: =Csoil_10_30+PEC_regional_soil -> 10 | H23: mg/kg dw | I23: =IF(Substance="-> Other",PNEC_soil_M,PNEC_soil_D) -> 5 | J23: mg/kg dw | K23: =PECsoil_total_1/PNEC_soil -> 2 | L23: =PECsoil_total_10/PNEC_soil -> 2 | M23: PEC total local calculated as TWA conc in soil for 30 days after 10th application; Eqn R.16-43
B24: Freshwater (dissolved) | C24: =(1/(ktotal_water*time)*Csurfacewater1*(1-EXP(-ktotal_water*time))) -> 52927.15351 | D24: =(1/(ktotal_water*time)*Csurfacewater10*(1-EXP(-ktotal_water*time))) -> 52927.15476 | E24: =IF(PECreg_water_M>0,PECreg_water_M,(VLOOKUP(Substance,'Micro-nutrient endpoints'!$B$4:$Q$9,10,FALSE))) -> 10 | F24: =Cwater_1_30+PECregional_water -> 52937.15351 | G24: =Cwater_10_30+PECregional_water -> 52937.15476 | H24: µg/L | I24: =IF(Substance="-> Other",PNEC_water_M,PNEC_water_D) -> 5 | J24: µg/L | K24: =PECwater_total_1/PNEC_water -> 10587.4307 | L24: =PECwater_total_10/PNEC_water -> 10587.43095 | M24: PEC total local calculated as TWA conc in freshwater for 30 days after 10th application; Eqn R.16-43
B25: Sediment | C25: =(1/(ktotal_water*365)*Csediment1*(1-EXP(-ktotal_water*365))) -> 5.695315071 | D25: =(1/(ktotal_water*365)*Csediment10*(1-EXP(-ktotal_water*365))) -> 5.695315206 | E25: =IF(PECreg_sed_M>0,PECreg_sed_M,(VLOOKUP(Substance,'Micro-nutrient endpoints'!$B$4:$Q$9,11,FALSE))) -> 10 | F25: =Csediment_1_365+PEC_regional_sediment -> 15.69531507 | G25: =Csediment_10_365+PEC_regional_sediment -> 15.69531521 | H25: mg/kg | I25: =IF(Substance="-> Other",PNEC_sed_M,PNEC_sed_D) -> 5 | J25: mg/kg | K25: =PECsediment_total_1/PNEC_sediment -> 3.139063014 | L25: =PECsediment_total_10/PNEC_sediment -> 3.139063041 | M25: PEC local based upon conc in surface water, calculated as yearly TWA; Eqn. R.16-34
B26: Groundwater | F26: =IF((PECsoil_total_1*RHOsoil_wet)/(Ksoil_water*1000)<SOL, (PECsoil_total_1*RHOsoil_wet)/(Ksoil_water*1000),SOL) -> 34.0052 | G26: =IF((PECsoil_total_10*RHOsoil_wet)/(Ksoil_water*1000)<SOL, (PECsoil_total_10*RHOsoil_wet)/(Ksoil_water*1000),SOL) -> 34.0052 | H26: mg/L | M26: Groundwater conc based upon conc in porewater agricultural soil, max is water solubility; Eqn. R.16-55
B28: Maximum safe application rate calculation
B29: Most sensitive environmental compartment year 1 | C29: =IF(MIN(Calculations!C70:C72)=Max_application_rate_soil_1,"soil",IF(MIN(Calculations!C70:C72)=Max_application_rate_freshwater_1,"freshwater",IF(MIN(Calculations!C70:C72)=Max_application_rate_sediment_1,"sediment"))) -> sediment
B30: Most sensitive environmental compartment year 10 | C30: =IF(MIN(Calculations!C73:C75)=Max_application_rate_soil_10,"soil",IF(MIN(Calculations!C73:C75)=Max_application_rate_freshwater_10,"freshwater",IF(MIN(Calculations!C73:C75)=Max_application_rate_sediment_10,"sediment"))) -> sediment
B31: Target RCR | C31: 0.9
B32: Estimated max application rate year 1 | C32: =MIN(Calculations!C70:C72) -> -289.7118034 | D32: kg/ha/year
B33: Estimated max application rate year 10 | C33: =MIN(Calculations!C73:C75) -> -289.7117965 | D33: kg/ha/year
J35: Tool developed by ARCHE Consulting © 2017

Sheet Defaults (hidden)
B1: FERTILIZER ENVIRONMENTAL EXPOSURE (FEE) TOOL
B2: DEFAULTS
B4: Parameters | C4: Value | D4: Unit | E4: Comments
B5: Temperature (TEMP) | C5: 285 | D5: °K | E5: Table R.16-8 (12°C)
B6: Depth (DEPTHsoil) | C6: 0.2 | D6: m | E6: Table R.16-15, agricultural soil
B7: Depth soil runoff (DEPTHsoil_runoff) | C7: 0.02 | D7: m | E7: Worst-case assumption
B8: Depth of the surface water (DEPTHwater) | C8: 0.3 | D8: m | E8: FOCUS Steps 1-2 | F8: Default scenario used: 1 ha field, with surrounding shallow water body 1/10th of field size
B9: Ratio field to water body (RATIO) | C9: 10 | D9: - | E9: FOCUS Steps 1-2
B10: Density solid phase (RHOsolid) | C10: 2500 | D10: kg/m3 | E10: Table R.16-8, general
B11: Density water phase (RHOwater) | C11: 1000 | D11: kg/m3 | E11: Table R.16-8, general
B12: Density air (RHOair) | C12: 1.3 | D12: kg/m3 | E12: Table R.16-8, general
B13: Volume fraction water in soil (Fwater_soil) | C13: 0.2 | D13: - | E13: Table R.16-8, soil
B14: Volume fraction air in soil (Fair_soil) | C14: 0.2 | D14: - | E14: Table R.16-8, soil
B15: Volume fraction solids in soil (Fsolid_soil) | C15: 0.6 | D15: - | E15: Table R.16-8, soil
B16: Weight fraction organic carbon in soil solids (Foc_soil) | C16: 0.02 | D16: - | E16: Table R.16-8, soil
B17: Concentration of suspended matter in water, dry weight (SUSPwater) | C17: 15 | D17: mg/L | E17: Table R.16-8, surface water
B18: Volume fraction solids in suspended matter (Fsolid_susp) | C18: 0.1 | D18: - | E18: Table R.16-8, susp.matter
B19: Volume fraction water in suspended matter (Fwater_susp) | C19: 0.9 | D19: - | E19: Table R.16-8, susp.matter
B20: Weight fraction organic carbon in susp.solids (Foc_susp) | C20: 0.1 | D20: - | E20: Table R.16-8, susp.matter
B21: Volume fraction solids in sediment (Fsolid_sed) | C21: 0.2 | D21: - | E21: Table R.16-8, sediment
B22: Volume fraction water in sediment (Fwater_sed) | C22: 0.8 | D22: - | E22: Table R.16-8, sediment
B23: Weight fraction organic carbon in sediment solids (Foc_sed) | C23: 0.05 | D23: - | E23: Table R.16-8, sediment
B24: Fraction of rainwater that infiltrates into soil (Finf_soil) | C24: 0.25 | D24: - | E24: Table R.16-18
B25: Rate of wet precipitation (RAINrate) | C25: =700/1000/365 -> 0.001917808219 | D25: m/d | E25: Table R.16-18 (avg.annual precipitation 700 mm/y)
B26: RAINrate_sec | C26: =RAINrate/24/3600 -> 2.219685439e-08 | D26: m/s | E26: Conversion rain rate to m/s
B27: Fraction runoff (Frunoff) | C27: 0.25 | D27: - | E27: Simplebox Table 2; volume fraction of precipitation running off
B28: Erosion (erosion) | C28: 9.51e-13 | D28: m/s | E28: Simplebox Table 2; erosion of soils
B29: Residence time of water (time_res) | C29: 40 | D29: d | E29: Table R.16-18
B30: Rate of advective downward transport of soil particles (SOLIDadv.soil) | C30: 6.34e-12 | D30: m/d | E30: Default R.16, pg.146
B31: Solid phase diffusion coefficient in the soil compartment (SOLIDdiff.soil) | C31: 6.37e-12 | D31: m/d | E31: Default R.16, pg.146
B32: Partial mass-transfer coefficient at air side of the air-soil interface (Kasl_air) | C32: =0.00105*60*60*24 -> 90.72 | D32: m/d | E32: Table R.16-19 (1.05E-3 m/sec)
B33: Density wet soil (RHOsoil_wet) | C33: =(Fsolid_soil*RHOsolid)+(Fwater_soil*RHOwater)+(Fair_soil*RHOair) -> 1700.26 | D33: kg/m3 | E33: Default R.16, calculated Eqn R.16-1
B34: Density dry soil (RHOsoil_dry) | C34: =(Fsolid_soil*RHOsolid)+(Fair_soil*RHOair) -> 1500.26 | D34: kg/m3 | E34: Default R.16, calculated Eqn R.16-1
B35: Water content soil | C35: =Fwater_soil/(Fsolid_soil*RHOsolid/1000) -> 0.1333333333 | D35: L/kg dw | E35: Default, calculated
B36: Density suspended matter (RHOsusp) | C36: =(Fsolid_susp*RHOsolid)+(Fwater_susp*RHOwater) -> 1150 | D36: kg/m3 | E36: Default R.16, calculated Eqn R.16-1
B37: Density sediment (RHOsed) | C37: =Fsolid_sed*RHOsolid+Fwater_sed*RHOwater -> 1300 | D37: kg/m3 | E37: Default R.16, calculated Eqn R.16-1
B38: Averaging time for Clocal soil (time) | C38: 30 | D38: d | E38: Default R.16, pg. 62, 127
B39: Averaging time for crop uptake (timecrops) | C39: 180 | D39: d | E39: Default R.16, pg. 62, 127
E42: Tool developed by ARCHE Consulting © 2017

Sheet Calculations (hidden)
B1: FERTILIZER ENVIRONMENTAL EXPOSURE (FEE) TOOL
B2: CALCULATIONS
B4: System properties | C4: Value | D4: Unit | E4: Comments
B5: Water solubility at 25°C | C5: =IF(SOL_M>0,SOL_M,SOL_D) -> 100 | D5: mg/L | E5: Select from input sheet
B6: Henry coefficient (Henry) | C6: =IF(Henry_M>0,Henry_M,IF(Henry_D=0.000004,0.000004,IF(AND(MOLW_M>0,SOL_M>0,VP_M>0),(VP_M*MOLW_M/SOL_M)))) -> 4e-11 | D6: Pa*m3/mol | E6: Eqn R.16-4; calculated from mol.weight, solubility and vapour pressure if no Henry coefficient is provided
B7: Partition coefficient solid-water in soil (Kpsoil) | C7: =IF(Kpsoil_M>0,Kpsoil_M,IF(AND(Substance="-> Other",Koc_M>0),(Koc_M*Foc_soil),Kpsoil_D)) -> 0.2 | D7: L/kg | E7: Eqn R.16-6; calculated from Koc if no manual/default Kpsoil input data is provided
B8: Kpsoil (Kpsoil_category) | C8: =IF(Kpsoil<=100,Biodegradation!C7,IF(Kpsoil<=1000,Biodegradation!C8,IF(Kpsoil<=10000,Biodegradation!C9,IF(Kpsoil<=100000,Biodegradation!C10)))) -> Kp ≤ 100 | E8: Category selected based on data in Kpsoil
B9: Biodegradation in soil (DT50soil_category) | C9: =IF(Substance="-> Other",DT50_bio_soil_M,DT50_bio_soil_D) -> Readily biodegradable | E9: Select from input sheet
B10: Biodegradation in soil (DT50_soil) | C10: =IF(AND(Substance="-> Other",Half_life_soil_M>0),Half_life_soil_M,IF(AND(Substance="-> Other",Kpsoil_M=0),"Provide manual input (DT50 or Kpsoil)",VLOOKUP(Kpsoil_category,Biodegradation!C6:G10,MATCH(DT50soil_category,Biodegradation!C6:G6,FALSE),FALSE))) -> 5 | D10: days | E10: Lookup table
B11: Biodegradation in water (DT50_water) | C11: =IF(AND(Substance="-> Other",DT50bio_water_sed_M>0),DT50bio_water_sed_M,IF(Substance="-> Other","Provide manual input",VLOOKUP(Biodegradation!C11,Biodegradation!C6:G11,MATCH(DT50soil_category,Biodegradation!C6:G6,FALSE),FALSE))) -> 30 | D11: days | E11: Lookup table
B12: Partition coefficient solid-water of susp. matter (Kpsusp) | C12: =IF(Kpsusp_M>0,Kpsusp_M,IF(AND(Substance="-> Other",Koc_M>0),(Koc_M*Foc_susp),Kpsusp_D)) -> 1 | D12: L/kg | E12: Eqn R.16-6; calculated from Koc if no manual/default Kpsusp input data is provided
B13: Kair_water | C13: =Henry/8.314/TEMP -> 1.688126981e-14 | D13: - | E13: Eqn R.16-5
B14: Ksoil_water | C14: =Fair_soil*Kair_water+Fwater_soil+Fsolid_soil*Kpsoil/1000*RHOsolid -> 0.5 | D14: m3/m3 | E14: Eqn R.16-7
B15: Ksusp_water | C15: =Fwater_susp+Fsolid_susp*Kpsusp/1000*RHOsolid -> 1.15 | D15: m3/m3 | E15: Eqn R.16-7
B16: Partial mass-transfer coefficient at soil side of the air-soil interface (Kasl_soil) | C16: =Veff_soil+Deff_soil/dp -> 0.0009603657615 | D16: m/d | E16: Eqn R.16-67
B17: Substance dependent penetration depth (dp) | C17: =(Veff_soil+SQRT(POWER(Veff_soil,2)+Deff_soil*4*kbio_soil))/(2*kbio_soil) -> 0.006927574608 | D17: m | E17: Eqn R.16-68
B18: Effective advection (with penetrating pore water)(Veff_soil) | C18: =FRw.soil*(RAINrate*Finf_soil/Fwater_soil)+FRs.soil*(SOLIDadv.soil/Fsolid_soil) -> 0.0009589041159 | D18: m | E18: Eqn R.16-69
B19: Effective diffusion coefficient (Deff_soil) | C19: =FRa.soil*(DIFFgas*POWER(Fair_soil,1.5)/Fair_soil)+FRw.soil*(DIFFwater*POWER(Fwater_soil,1.5)/Fwater_soil)+FRs.soil*(SOLIDdiff.soil/Fsolid_soil) -> 1.012565851e-08 | D19: m2/d | E19: Eqn R.16-70
B20: Mass fraction of the substance in the water phase of soil (FRw.soil) | C20: =Fwater_soil/(Fair_soil*Kair_water+Fwater_soil+Fsolid_soil*Kpsoil*RHOsolid/1000) -> 0.4 | D20: - | E20: Eqn R.16-71
B21: Mass fraction of the substance in the solid phase of soil (FRs.soil) | C21: =Fsolid_soil/(Fair_soil*Kair_water/(Kpsoil*RHOsolid/1000)+Fwater_soil/(Kpsoil*RHOsolid/1000)+Fsolid_soil) -> 0.6 | D21: - | E21: Eqn R.16-72
B22: Mass fraction of the substance in the air phase of soil (Fra.soil) | C22: =1-FRw.soil-FRs.soil -> 6.661338148e-15 | D22: - | E22: Eqn R.16-73
B23: Molecular diffusivity of the substance in the gas phase (DIFFgas) | C23: =IF(MOLW_M>0,(0.0000257*SQRT(18/(MOLW_M/1000))),(0.0000257*SQRT(18/(MOLW_D/1000)))) -> 0.0005451793283 | D23: m2/d | E23: Eqn R.16-74
B24: Molecular diffusivity of the substance in the water phase (DIFFwater) | C24: =IF(MOLW_M>0,(0.000000002*SQRT(32/(MOLW_M/1000))),(0.000000002*SQRT(32/(MOLW_D/1000)))) -> 5.656854249e-08 | D24: m2/d | E24: Eqn R.16-75
B26: Crop metal concentration | C26: =IF(Crop_conc_M>0,Crop_conc_M,Crop_conc_D) -> 10 | D26: g/t | E26: Select from input sheet
B27: Crop yield | C27: =IF(Crop_yield_M>0,Crop_yield_M,Crop_yield_D) -> 100 | D27: t/ha/y | E27: Select from input sheet
B28: Crop offtake | C28: =(Metal_conc*0.001)*Yield -> 1 | D28: kg/ha/y
B29: Pseudo-first order rate constant for volatilisation from soil (kvolat) | C29: =1/(((1/(Kasl_air*Kair_water/Ksoil_water))+(1/Kasl_soil))*DEPTHsoil) -> 1.531468792e-11 | D29: 1/d | E29: Eqn R.16-45
B30: Pseudo-first order rate constant for leaching from top soil (kleach) | C30: =Finf_soil*RAINrate/(Ksoil_water*DEPTHsoil) -> 0.004794520548 | D30: 1/d | E30: Eqn R.16-46
B31: Pseudo-first order rate constant for biodegradation in soil (kbio_soil) | C31: =LN(2)/DT50_soil -> 0.1386294361 | D31: 1/d | E31: Eqn R.16-13
B32: First order rate constant for removal from top soil (ktotal) | C32: =kvolat+kleach+kbio_soil -> 0.1434239567 | D32: 1/d | E32: Eqn R.16-44
B33: Factor_1 removal soil within year 1 (F_1) | C33: =IF(Number_of_applications>1,1-EXP(-Number_of_applications*Time_between_applications*ktotal),1) -> 1 | D33: 1/d | E33: Focus Steps 1-2 calc
B34: Factor_2 removal soil within year 1 (F_2) | C34: =IF(Number_of_applications>1,1-EXP(-Time_between_applications*ktotal),1) -> 1 | D34: 1/d | E34: Focus Steps 1-2 calc
B35: Fraction accumulation in soil in one year (Facc) | C35: =EXP(-365*ktotal) -> 1.839903183e-23 | D35: - | E35: Eqn R.16-49
B36: Correction factor runoff (Corr_runoff) | C36: =(DEPTHsoil_runoff/0.1)/(1-EXP(-DEPTHsoil_runoff/0.1)) -> 1.103331113 | D36: - | E36: Simplebox Eqn 111
B37: Correction factor runoff/depth (Corr_runoff_depth) | C37: =Corr_runoff/DEPTHsoil_runoff -> 55.16655566 | D37: - | E37: Simplebox Eqn 112
B38: Ksoil_water_runoff | C38: =(((RAINrate_sec*Frunoff/Ksoil_water)+erosion)*Corr_runoff_depth)*3600*24 -> 0.05290396977 | D38: 1/d | E38: Simplebox Eqn 112
B39: Rate constant for removal from water-sediment phase (kbio_water_sed) | C39: =IF(Substance="-> Other",(LN(2)/DT50bio_water_sed_M),(LN(2)/1000000)) -> 0.02310490602 | D39: 1/d | E39: Modified Eqn R.16-13
B40: Rate constant for residence time in water body (kres) | C40: =1/time_res -> 0.025 | D40: 1/d
B41: First order rate constant for removal from water phase (ktotal_water) | C41: =kbio_water_sed+kdill -> 0.04810490602 | D41: 1/d | E41: Modified Eqn R.16-44
B42: Fraction accumulation in water_sediment in one year (Facc_water_sed) | C42: =EXP(-365*ktotal_water) -> 2.368815514e-08 | D42: - | E42: Modified Eqn R.16-49
B44: Equivalent application rate, single (App_eq) | C44: =IF(Single_Multi="Multiple",APPL_rate,APPL_rate_year) -> 300 | D44: kg/ha | E44: Application rate of element/substance in fertilizer, per application
B45: Runoff percentage related to soil residue (Runoff_perc) | C45: =IF(Runoff_refined="",Runoff_D,Runoff_refined) -> 100 | D45: % | E45: Select from input sheet including runoff reduction if applicable
B46: Crop interception fraction (Fcrop_int) | C46: =IF(Crop_interception_M="",0,Crop_interception_M/100) -> 0 | D46: - | E46: Select from input sheet
B47: Drift percentage (Drift_perc) | C47: =IF(Drift_RMM<>"",Drift_RMM,IF(Drift_refined="",Drift_D,Drift_refined)) -> 0 | D47: % | E47: Select from input sheet
B48: Volatilization percentage (Vol_perc) | C48: =IF(Substance="-> Other",VLOOKUP(Vol_M,'SpERC details'!E4:F10,2,FALSE),Vol_D) -> 1 | D48: % | E48: Select from input sheet or lookup table
B49: Equivalent application rate to soil, all applications (App_eq_soil) | C49: =App_eq*(F_1/F_2) -> 300 | D49: kg/ha | E49: App_eq_soil = App_eq, corrected for removal from soil between applications
B50: Final input to soil, all applications (App_soil) | C50: =App_eq*((100-Runoff_perc)/100)*(F_1/F_2) -> 0 | D50: kg/ha | E50: App_soil = App_eq - runoff, corrected for runoff and removal from soil between applications
B51: Total input to soil, taking into account crop offtake (Input_soil) | C51: =IF(App_soil-Crop_offtake>0,App_soil-Crop_offtake,0) -> 0 | D51: kg/ha
B53: Concentration in soil after 1st year application including crop offtake (Csoil1) | C53: =(Input_soil*100)/(DEPTHsoil*RHOsoil_dry) -> 0 | D53: mg/kg dw | E53: Similar to Eqn R.16-48
B54: Concentration in surface water after 1st year application (Csurfacewater1) | C54: =MAX(Conc_sw!L6:L106) -> 100000 | D54: µg/L | E54: Modified Eqn R.16-29
B55: Concentration in sediment after 1st year application (Csediment1) | C55: =((Ksusp_water/RHOsusp)*Csurfacewater1/1000*1000) -> 100 | D55: mg/kg | E55: Eqn. R.16-34; Csediment based upon conc in surface water
B57: Concentration in soil after 10 years (Csoil10) | C57: =Csoil1*(1+POWER(Facc,1)+POWER(Facc,2)+POWER(Facc,3)+POWER(Facc,4)+POWER(Facc,5)+POWER(Facc,6)+POWER(Facc,7)+POWER(Facc,8)+POWER(Facc,9)) -> 0 | D57: mg/kg dw | E57: Eqn R.16-50
B58: Concentration in surface water after 10th application (Csurfacewater10) | C58: =Csurfacewater1*(1+POWER(Facc_water_sed,1)+POWER(Facc_water_sed,2)+POWER(Facc_water_sed,3)+POWER(Facc_water_sed,4)+POWER(Facc_water_sed,5)+POWER(Facc_water_sed,6)+POWER(Facc_water_sed,7)+POWER(Facc_water_sed,8)+POWER(Facc_water_sed,9)) -> 100000.0024 | D58: µg/L | E58: Modified Eqn R.16-50
B59: Concentration in sediment after 10th application (Csediment10) | C59: =((Ksusp_water/RHOsusp)*Csurfacewater10*1000/1000) -> 100.0000024 | D59: mg/kg | E59: Eqn. R.16-34; Csediment based upon conc in surface water
B61: RCR regional soil | C61: =PEC_regional_soil/PNEC_soil -> 2 | D61: - | E61: Select from output sheet
B62: RCR regional freshwater | C62: =PECregional_water/PNEC_water -> 2 | D62: - | E62: Select from output sheet
B63: RCR regional sediment | C63: =PEC_regional_sediment/PNEC_sediment -> 2 | D63: - | E63: Select from output sheet
B64: Target RCR local soil | C64: =Target_RCR-RCR_regional_soil -> -1.1 | D64: -
B65: Target RCR local freshwater | C65: =Target_RCR-RCR_regional_freshwater -> -1.1 | D65: -
B66: Target RCR local sediment | C66: =Target_RCR-RCR_regional_sediment -> -1.1 | D66: -
B67: Max Clocal soil | C67: =PNEC_soil*Target_RCR_local_soil -> -5.5 | D67: mg/kg dw
B68: Max Clocal freshwater | C68: =PNEC_water*Target_RCR_local_freshwater -> -5.5 | D68: µg/L
B69: Max Clocal sediment | C69: =PNEC_sediment*Target_RCR_local_sediment -> -5.5 | D69: mg/kg
B70: Max application rate soil 1 year | C70: =IF(Csoil_1_30>0,APPL_rate_year*(Max_Clocal_soil/Csoil_1_30),1000) -> 1000 | D70: kg/ha/year
B71: Max application rate freshwater 1 year | C71: =IF(Cwater_1_30>0,APPL_rate_year*(Max_Clocal_freshwater/Cwater_1_30),1000) -> -0.03117492422 | D71: kg/ha/year
B72: Max application rate sediment 1 year | C72: =IF(Csediment_1_365>0,APPL_rate_year*(Max_Clocal_sediment/Csediment_1_365),1000) -> -289.7118034 | D72: kg/ha/year
B73: Max application rate soil 10 year | C73: =IF(Csoil_10_30>0,APPL_rate_year*(Max_Clocal_soil/Csoil_10_30),1000) -> 1000 | D73: kg/ha/year, 10 years
B74: Max application rate freshwater 10 year | C74: =IF(Cwater_10_30>0,APPL_rate_year*(Max_Clocal_freshwater/Cwater_10_30),1000) -> -0.03117492348 | D74: kg/ha/year, 10 years
B75: Max application rate sediment 10 year | C75: =IF(Csediment_10_365>0,APPL_rate_year*(Max_Clocal_sediment/Csediment_10_365),1000) -> -289.7117965 | D75: kg/ha/year, 10 years
E78: Tool developed by ARCHE Consulting © 2017

Sheet Conc_sw (hidden)
B1: FERTILIZER ENVIRONMENTAL EXPOSURE (FEE) TOOL
B2: EXPOSURE SURFACE WATER
B4: Input parameters | G4: Conc surface water calculations
B5: Input runoff [mg/m2] | C5: Input drift [mg/m2] | D5: Total input [µg/L] | E5: Csurface water [µg/L] | G5: Day no | H5: Input runoff [mg/m2] | I5: Input drift [mg/m2] | J5: Total input [µg/L] | K5: Total input incl removal [µg/L] | L5: Csurface water [µg/L]
B6: =App_eq_soil*Runoff_perc*RATIO -> 300000 | C6: =App_eq*Drift_perc -> 0 | D6: =(Input_runoff+Input_drift)/DEPTHwater -> 1000000 | E6: =IF((Input_sw)/(1+Kpsusp*SUSPwater*0.000001)<(SOL*1000),(Input_sw)/(1+Kpsusp*SUSPwater*0.000001),(SOL*1000)) -> 100000 | G6: 0 | H6: =IF(G6=((Time_between_applications*(Number_of_applications-1))+4),Input_runoff,0) -> 0 | I6: =Input_drift -> 0 | J6: =(H6+I6)/DEPTHwater -> 0 | K6: =J6*EXP(-ktotal_water*G6) -> 0 | L6: =IF((K6)/(1+Kpsusp*SUSPwater*0.000001)<(SOL*1000),(K6)/(1+Kpsusp*SUSPwater*0.000001),(SOL*1000)) -> 0
G7: 1 | H7: 0 | I7: =IF(Single_Multi="Single",0,IF(AND(MOD(G7/Time_between_applications,1)=0,OR((Conc_sw!G7<Conc_sw!$C$10),(Conc_sw!G7=Conc_sw!$C$10))),Input_drift,0)) -> 0 | J7: 0 | K7: =(J7+K6)*EXP(-ktotal_water*$G$7) -> 0 | L7: 0
G8: 2 | H8: 0 | I8: =IF(Single_Multi="Single",0,IF(AND(MOD(G8/Time_between_applications,1)=0,OR((Conc_sw!G8<Conc_sw!$C$10),(Conc_sw!G8=Conc_sw!$C$10))),Input_drift,0)) -> 0 | J8: 0 | K8: 0 | L8: 0
G9: 3 | H9: 0 | I9: =IF(Single_Multi="Single",0,IF(AND(MOD(G9/Time_between_applications,1)=0,OR((Conc_sw!G9<Conc_sw!$C$10),(Conc_sw!G9=Conc_sw!$C$10))),Input_drift,0)) -> 0 | J9: 0 | K9: 0 | L9: 0
B10: Maximum days | C10: =Time_between_applications*(Number_of_applications-1) -> 0 | G10: 4 | H10: 300000 | I10: =IF(Single_Multi="Single",0,IF(AND(MOD(G10/Time_between_applications,1)=0,OR((Conc_sw!G10<Conc_sw!$C$10),(Conc_sw!G10=Conc_sw!$C$10))),Input_drift,0)) -> 0 | J10: 1000000 | K10: 953033.8029 | L10: 100000
G11: 5 | H11: 0 | I11: =IF(Single_Multi="Single",0,IF(AND(MOD(G11/Time_between_applications,1)=0,OR((Conc_sw!G11<Conc_sw!$C$10),(Conc_sw!G11=Conc_sw!$C$10))),Input_drift,0)) -> 0 | J11: 0 | K11: 908273.4294 | L11: 100000
G12: 6 | H12: 0 | I12: =IF(Single_Multi="Single",0,IF(AND(MOD(G12/Time_between_applications,1)=0,OR((Conc_sw!G12<Conc_sw!$C$10),(Conc_sw!G12=Conc_sw!$C$10))),Input_drift,0)) -> 0 | J12: 0 | K12: 865615.2804 | L12: 100000
G13: 7 | H13: 0 | I13: =IF(Single_Multi="Single",0,IF(AND(MOD(G13/Time_between_applications,1)=0,OR((Conc_sw!G13<Conc_sw!$C$10),(Conc_sw!G13=Conc_sw!$C$10))),Input_drift,0)) -> 0 | J13: 0 | K13: 824960.6225 | L13: 100000
G14: 8 | H14: 0 | I14: =IF(Single_Multi="Single",0,IF(AND(MOD(G14/Time_between_applications,1)=0,OR((Conc_sw!G14<Conc_sw!$C$10),(Conc_sw!G14=Conc_sw!$C$10))),Input_drift,0)) -> 0 | J14: 0 | K14: 786215.3593 | L14: 100000
G15: 9 | H15: 0 | I15: =IF(Single_Multi="Single",0,IF(AND(MOD(G15/Time_between_applications,1)=0,OR((Conc_sw!G15<Conc_sw!$C$10),(Conc_sw!G15=Conc_sw!$C$10))),Input_drift,0)) -> 0 | J15: 0 | K15: 749289.8137 | L15: 100000
G16: 10 | H16: 0 | I16: =IF(Single_Multi="Single",0,IF(AND(MOD(G16/Time_between_applications,1)=0,OR((Conc_sw!G16<Conc_sw!$C$10),(Conc_sw!G16=Conc_sw!$C$10))),Input_drift,0)) -> 0 | J16: 0 | K16: 714098.5206 | L16: 100000
G17: 11 | H17: 0 | I17: =IF(Single_Multi="Single",0,IF(AND(MOD(G17/Time_between_applications,1)=0,OR((Conc_sw!G17<Conc_sw!$C$10),(Conc_sw!G17=Conc_sw!$C$10))),Input_drift,0)) -> 0 | J17: 0 | K17: 680560.0287 | L17: 100000
G18: 12 | H18: 0 | I18: =IF(Single_Multi="Single",0,IF(AND(MOD(G18/Time_between_applications,1)=0,OR((Conc_sw!G18<Conc_sw!$C$10),(Conc_sw!G18=Conc_sw!$C$10))),Input_drift,0)) -> 0 | J18: 0 | K18: 648596.7122 | L18: 100000
G19: 13 | H19: 0 | I19: =IF(Single_Multi="Single",0,IF(AND(MOD(G19/Time_between_applications,1)=0,OR((Conc_sw!G19<Conc_sw!$C$10),(Conc_sw!G19=Conc_sw!$C$10))),Input_drift,0)) -> 0 | J19: 0 | K19: 618134.5912 | L19: 100000
G20: 14 | H20: 0 | I20: =IF(Single_Multi="Single",0,IF(AND(MOD(G20/Time_between_applications,1)=0,OR((Conc_sw!G20<Conc_sw!$C$10),(Conc_sw!G20=Conc_sw!$C$10))),Input_drift,0)) -> 0 | J20: 0 | K20: 589103.1601 | L20: 100000
G21: 15 | H21: 0 | I21: =IF(Single_Multi="Single",0,IF(AND(MOD(G21/Time_between_applications,1)=0,OR((Conc_sw!G21<Conc_sw!$C$10),(Conc_sw!G21=Conc_sw!$C$10))),Input_drift,0)) -> 0 | J21: 0 | K21: 561435.2249 | L21: 100000
G22: 16 | H22: 0 | I22: =IF(Single_Multi="Single",0,IF(AND(MOD(G22/Time_between_applications,1)=0,OR((Conc_sw!G22<Conc_sw!$C$10),(Conc_sw!G22=Conc_sw!$C$10))),Input_drift,0)) -> 0 | J22: 0 | K22: 535066.7475 | L22: 100000
G23: 17 | H23: 0 | I23: =IF(Single_Multi="Single",0,IF(AND(MOD(G23/Time_between_applications,1)=0,OR((Conc_sw!G23<Conc_sw!$C$10),(Conc_sw!G23=Conc_sw!$C$10))),Input_drift,0)) -> 0 | J23: 0 | K23: 509936.6971 | L23: 100000
G24: 18 | H24: 0 | I24: =IF(Single_Multi="Single",0,IF(AND(MOD(G24/Time_between_applications,1)=0,OR((Conc_sw!G24<Conc_sw!$C$10),(Conc_sw!G24=Conc_sw!$C$10))),Input_drift,0)) -> 0 | J24: 0 | K24: 485986.9097 | L24: 100000
G25: 19 | H25: 0 | I25: =IF(Single_Multi="Single",0,IF(AND(MOD(G25/Time_between_applications,1)=0,OR((Conc_sw!G25<Conc_sw!$C$10),(Conc_sw!G25=Conc_sw!$C$10))),Input_drift,0)) -> 0 | J25: 0 | K25: 463161.9527 | L25: 100000
G26: 20 | H26: 0 | I26: =IF(Single_Multi="Single",0,IF(AND(MOD(G26/Time_between_applications,1)=0,OR((Conc_sw!G26<Conc_sw!$C$10),(Conc_sw!G26=Conc_sw!$C$10))),Input_drift,0)) -> 0 | J26: 0 | K26: 441408.9971 | L26: 100000
G27: 21 | H27: 0 | I27: =IF(Single_Multi="Single",0,IF(AND(MOD(G27/Time_between_applications,1)=0,OR((Conc_sw!G27<Conc_sw!$C$10),(Conc_sw!G27=Conc_sw!$C$10))),Input_drift,0)) -> 0 | J27: 0 | K27: 420677.6951 | L27: 100000
G28: 22 | H28: 0 | I28: =IF(Single_Multi="Single",0,IF(AND(MOD(G28/Time_between_applications,1)=0,OR((Conc_sw!G28<Conc_sw!$C$10),(Conc_sw!G28=Conc_sw!$C$10))),Input_drift,0)) -> 0 | J28: 0 | K28: 400920.0635 | L28: 100000
G29: 23 | H29: 0 | I29: =IF(Single_Multi="Single",0,IF(AND(MOD(G29/Time_between_applications,1)=0,OR((Conc_sw!G29<Conc_sw!$C$10),(Conc_sw!G29=Conc_sw!$C$10))),Input_drift,0)) -> 0 | J29: 0 | K29: 382090.3728 | L29: 100000
G30: 24 | H30: 0 | I30: =IF(Single_Multi="Single",0,IF(AND(MOD(G30/Time_between_applications,1)=0,OR((Conc_sw!G30<Conc_sw!$C$10),(Conc_sw!G30=Conc_sw!$C$10))),Input_drift,0)) -> 0 | J30: 0 | K30: 364145.041 | L30: 100000
G31: 25 | H31: 0 | I31: =IF(Single_Multi="Single",0,IF(AND(MOD(G31/Time_between_applications,1)=0,OR((Conc_sw!G31<Conc_sw!$C$10),(Conc_sw!G31=Conc_sw!$C$10))),Input_drift,0)) -> 0 | J31: 0 | K31: 347042.5332 | L31: 100000
G32: 26 | H32: 0 | I32: =IF(Single_Multi="Single",0,IF(AND(MOD(G32/Time_between_applications,1)=0,OR((Conc_sw!G32<Conc_sw!$C$10),(Conc_sw!G32=Conc_sw!$C$10))),Input_drift,0)) -> 0 | J32: 0 | K32: 330743.2652 | L32: 100000
G33: 27 | H33: 0 | I33: =IF(Single_Multi="Single",0,IF(AND(MOD(G33/Time_between_applications,1)=0,OR((Conc_sw!G33<Conc_sw!$C$10),(Conc_sw!G33=Conc_sw!$C$10))),Input_drift,0)) -> 0 | J33: 0 | K33: 315209.5118 | L33: 100000
G34: 28 | H34: 0 | I34: =IF(Single_Multi="Single",0,IF(AND(MOD(G34/Time_between_applications,1)=0,OR((Conc_sw!G34<Conc_sw!$C$10),(Conc_sw!G34=Conc_sw!$C$10))),Input_drift,0)) -> 0 | J34: 0 | K34: 300405.3197 | L34: 100000
G35: 29 | H35: 0 | I35: =IF(Single_Multi="Single",0,IF(AND(MOD(G35/Time_between_applications,1)=0,OR((Conc_sw!G35<Conc_sw!$C$10),(Conc_sw!G35=Conc_sw!$C$10))),Input_drift,0)) -> 0 | J35: 0 | K35: 286296.4242 | L35: 100000
G36: 30 | H36: 0 | I36: =IF(Single_Multi="Single",0,IF(AND(MOD(G36/Time_between_applications,1)=0,OR((Conc_sw!G36<Conc_sw!$C$10),(Conc_sw!G36=Conc_sw!$C$10))),Input_drift,0)) -> 0 | J36: 0 | K36: 272850.1699 | L36: 100000
G37: 31 | H37: 0 | I37: =IF(Single_Multi="Single",0,IF(AND(MOD(G37/Time_between_applications,1)=0,OR((Conc_sw!G37<Conc_sw!$C$10),(Conc_sw!G37=Conc_sw!$C$10))),Input_drift,0)) -> 0 | J37: 0 | K37: 260035.4351 | L37: 100000
G38: 32 | H38: =IF(G38=((Time_between_applications*(Number_of_applications-1))+4),Input_runoff,0) -> 0 | I38: =IF(Single_Multi="Single",0,IF(AND(MOD(G38/Time_between_applications,1)=0,OR((Conc_sw!G38<Conc_sw!$C$10),(Conc_sw!G38=Conc_sw!$C$10))),Input_drift,0)) -> 0 | J38: =(H38+I38)/DEPTHwater -> 0 | K38: 247822.5596 | L38: =IF((K38)/(1+Kpsusp*SUSPwater*0.000001)<(SOL*1000),(K38)/(1+Kpsusp*SUSPwater*0.000001),(SOL*1000)) -> 100000
G39: 33 | H39: 0 | I39: =IF(Single_Multi="Single",0,IF(AND(MOD(G39/Time_between_applications,1)=0,OR((Conc_sw!G39<Conc_sw!$C$10),(Conc_sw!G39=Conc_sw!$C$10))),Input_drift,0)) -> 0 | J39: 0 | K39: =(J39+K38)*EXP(-ktotal_water*$G$7) -> 236183.2764 | L39: 100000
G40: 34 | H40: 0 | I40: =IF(Single_Multi="Single",0,IF(AND(MOD(G40/Time_between_applications,1)=0,OR((Conc_sw!G40<Conc_sw!$C$10),(Conc_sw!G40=Conc_sw!$C$10))),Input_drift,0)) -> 0 | J40: 0 | K40: 225090.646 | L40: 100000
G41: 35 | H41: 0 | I41: =IF(Single_Multi="Single",0,IF(AND(MOD(G41/Time_between_applications,1)=0,OR((Conc_sw!G41<Conc_sw!$C$10),(Conc_sw!G41=Conc_sw!$C$10))),Input_drift,0)) -> 0 | J41: 0 | K41: 214518.9944 | L41: 100000
G42: 36 | H42: 0 | I42: =IF(Single_Multi="Single",0,IF(AND(MOD(G42/Time_between_applications,1)=0,OR((Conc_sw!G42<Conc_sw!$C$10),(Conc_sw!G42=Conc_sw!$C$10))),Input_drift,0)) -> 0 | J42: 0 | K42: 204443.853 | L42: 100000
G43: 37 | H43: 0 | I43: =IF(Single_Multi="Single",0,IF(AND(MOD(G43/Time_between_applications,1)=0,OR((Conc_sw!G43<Conc_sw!$C$10),(Conc_sw!G43=Conc_sw!$C$10))),Input_drift,0)) -> 0 | J43: 0 | K43: 194841.9027 | L43: 100000
G44: 38 | H44: 0 | I44: =IF(Single_Multi="Single",0,IF(AND(MOD(G44/Time_between_applications,1)=0,OR((Conc_sw!G44<Conc_sw!$C$10),(Conc_sw!G44=Conc_sw!$C$10))),Input_drift,0)) -> 0 | J44: 0 | K44: 185690.9195 | L44: 100000
G45: 39 | H45: 0 | I45: =IF(Single_Multi="Single",0,IF(AND(MOD(G45/Time_between_applications,1)=0,OR((Conc_sw!G45<Conc_sw!$C$10),(Conc_sw!G45=Conc_sw!$C$10))),Input_drift,0)) -> 0 | J45: 0 | K45: 176969.7232 | L45: 100000
G46: 40 | H46: 0 | I46: =IF(Single_Multi="Single",0,IF(AND(MOD(G46/Time_between_applications,1)=0,OR((Conc_sw!G46<Conc_sw!$C$10),(Conc_sw!G46=Conc_sw!$C$10))),Input_drift,0)) -> 0 | J46: 0 | K46: 168658.1282 | L46: 100000
G47: 41 | H47: 0 | I47: =IF(Single_Multi="Single",0,IF(AND(MOD(G47/Time_between_applications,1)=0,OR((Conc_sw!G47<Conc_sw!$C$10),(Conc_sw!G47=Conc_sw!$C$10))),Input_drift,0)) -> 0 | J47: 0 | K47: 160736.8973 | L47: 100000
G48: 42 | H48: 0 | I48: =IF(Single_Multi="Single",0,IF(AND(MOD(G48/Time_between_applications,1)=0,OR((Conc_sw!G48<Conc_sw!$C$10),(Conc_sw!G48=Conc_sw!$C$10))),Input_drift,0)) -> 0 | J48: 0 | K48: 153187.6965 | L48: 100000
G49: 43 | H49: 0 | I49: =IF(Single_Multi="Single",0,IF(AND(MOD(G49/Time_between_applications,1)=0,OR((Conc_sw!G49<Conc_sw!$C$10),(Conc_sw!G49=Conc_sw!$C$10))),Input_drift,0)) -> 0 | J49: 0 | K49: 145993.053 | L49: 100000
G50: 44 | H50: 0 | I50: =IF(Single_Multi="Single",0,IF(AND(MOD(G50/Time_between_applications,1)=0,OR((Conc_sw!G50<Conc_sw!$C$10),(Conc_sw!G50=Conc_sw!$C$10))),Input_drift,0)) -> 0 | J50: 0 | K50: 139136.3145 | L50: 100000
G51: 45 | H51: 0 | I51: =IF(Single_Multi="Single",0,IF(AND(MOD(G51/Time_between_applications,1)=0,OR((Conc_sw!G51<Conc_sw!$C$10),(Conc_sw!G51=Conc_sw!$C$10))),Input_drift,0)) -> 0 | J51: 0 | K51: 132601.6109 | L51: 100000
G52: 46 | H52: 0 | I52: =IF(Single_Multi="Single",0,IF(AND(MOD(G52/Time_between_applications,1)=0,OR((Conc_sw!G52<Conc_sw!$C$10),(Conc_sw!G52=Conc_sw!$C$10))),Input_drift,0)) -> 0 | J52: 0 | K52: 126373.8175 | L52: 100000
G53: 47 | H53: 0 | I53: =IF(Single_Multi="Single",0,IF(AND(MOD(G53/Time_between_applications,1)=0,OR((Conc_sw!G53<Conc_sw!$C$10),(Conc_sw!G53=Conc_sw!$C$10))),Input_drift,0)) -> 0 | J53: 0 | K53: 120438.5199 | L53: 100000
G54: 48 | H54: 0 | I54: =IF(Single_Multi="Single",0,IF(AND(MOD(G54/Time_between_applications,1)=0,OR((Conc_sw!G54<Conc_sw!$C$10),(Conc_sw!G54=Conc_sw!$C$10))),Input_drift,0)) -> 0 | J54: 0 | K54: 114781.9806 | L54: 100000
G55: 49 | H55: 0 | I55: =IF(Single_Multi="Single",0,IF(AND(MOD(G55/Time_between_applications,1)=0,OR((Conc_sw!G55<Conc_sw!$C$10),(Conc_sw!G55=Conc_sw!$C$10))),Input_drift,0)) -> 0 | J55: 0 | K55: 109391.1075 | L55: 100000
G56: 50 | H56: 0 | I56: =IF(Single_Multi="Single",0,IF(AND(MOD(G56/Time_between_applications,1)=0,OR((Conc_sw!G56<Conc_sw!$C$10),(Conc_sw!G56=Conc_sw!$C$10))),Input_drift,0)) -> 0 | J56: 0 | K56: 104253.4231 | L56: 100000
G57: 51 | H57: 0 | I57: =IF(Single_Multi="Single",0,IF(AND(MOD(G57/Time_between_applications,1)=0,OR((Conc_sw!G57<Conc_sw!$C$10),(Conc_sw!G57=Conc_sw!$C$10))),Input_drift,0)) -> 0 | J57: 0 | K57: 99357.03632 | L57: 99355.54599
G58: 52 | H58: 0 | I58: =IF(Single_Multi="Single",0,IF(AND(MOD(G58/Time_between_applications,1)=0,OR((Conc_sw!G58<Conc_sw!$C$10),(Conc_sw!G58=Conc_sw!$C$10))),Input_drift,0)) -> 0 | J58: 0 | K58: 94690.61417 | L58: 94689.19383
G59: 53 | H59: 0 | I59: =IF(Single_Multi="Single",0,IF(AND(MOD(G59/Time_between_applications,1)=0,OR((Conc_sw!G59<Conc_sw!$C$10),(Conc_sw!G59=Conc_sw!$C$10))),Input_drift,0)) -> 0 | J59: 0 | K59: 90243.35612 | L59: 90242.00248
G60: 54 | H60: 0 | I60: =IF(Single_Multi="Single",0,IF(AND(MOD(G60/Time_between_applications,1)=0,OR((Conc_sw!G60<Conc_sw!$C$10),(Conc_sw!G60=Conc_sw!$C$10))),Input_drift,0)) -> 0 | J60: 0 | K60: 86004.96886 | L60: 86003.67881
G61: 55 | H61: 0 | I61: =IF(Single_Multi="Single",0,IF(AND(MOD(G61/Time_between_applications,1)=0,OR((Conc_sw!G61<Conc_sw!$C$10),(Conc_sw!G61=Conc_sw!$C$10))),Input_drift,0)) -> 0 | J61: 0 | K61: 81965.64254 | L61: 81964.41307
G62: 56 | H62: 0 | I62: =IF(Single_Multi="Single",0,IF(AND(MOD(G62/Time_between_applications,1)=0,OR((Conc_sw!G62<Conc_sw!$C$10),(Conc_sw!G62=Conc_sw!$C$10))),Input_drift,0)) -> 0 | J62: 0 | K62: 78116.02801 | L62: 78114.85629
G63: 57 | H63: 0 | I63: =IF(Single_Multi="Single",0,IF(AND(MOD(G63/Time_between_applications,1)=0,OR((Conc_sw!G63<Conc_sw!$C$10),(Conc_sw!G63=Conc_sw!$C$10))),Input_drift,0)) -> 0 | J63: 0 | K63: 74447.21524 | L63: 74446.09855
G64: 58 | H64: 0 | I64: =IF(Single_Multi="Single",0,IF(AND(MOD(G64/Time_between_applications,1)=0,OR((Conc_sw!G64<Conc_sw!$C$10),(Conc_sw!G64=Conc_sw!$C$10))),Input_drift,0)) -> 0 | J64: 0 | K64: 70950.71265 | L64: 70949.64841
G65: 59 | H65: 0 | I65: =IF(Single_Multi="Single",0,IF(AND(MOD(G65/Time_between_applications,1)=0,OR((Conc_sw!G65<Conc_sw!$C$10),(Conc_sw!G65=Conc_sw!$C$10))),Input_drift,0)) -> 0 | J65: 0 | K65: 67618.42749 | L65: 67617.41323
G66: 60 | H66: 0 | I66: =IF(Single_Multi="Single",0,IF(AND(MOD(G66/Time_between_applications,1)=0,OR((Conc_sw!G66<Conc_sw!$C$10),(Conc_sw!G66=Conc_sw!$C$10))),Input_drift,0)) -> 0 | J66: 0 | K66: 64442.6471 | L66: 64441.68047
G67: 61 | H67: 0 | I67: =IF(Single_Multi="Single",0,IF(AND(MOD(G67/Time_between_applications,1)=0,OR((Conc_sw!G67<Conc_sw!$C$10),(Conc_sw!G67=Conc_sw!$C$10))),Input_drift,0)) -> 0 | J67: 0 | K67: 61416.02103 | L67: 61415.0998
G68: 62 | H68: 0 | I68: =IF(Single_Multi="Single",0,IF(AND(MOD(G68/Time_between_applications,1)=0,OR((Conc_sw!G68<Conc_sw!$C$10),(Conc_sw!G68=Conc_sw!$C$10))),Input_drift,0)) -> 0 | J68: 0 | K68: 58531.54408 | L68: 58530.66612
G69: 63 | H69: 0 | I69: =IF(Single_Multi="Single",0,IF(AND(MOD(G69/Time_between_applications,1)=0,OR((Conc_sw!G69<Conc_sw!$C$10),(Conc_sw!G69=Conc_sw!$C$10))),Input_drift,0)) -> 0 | J69: 0 | K69: 55782.54004 | L69: 55781.70331
G70: 64 | H70: =IF(G70=((Time_between_applications*(Number_of_applications-1))+4),Input_runoff,0) -> 0 | I70: =IF(Single_Multi="Single",0,IF(AND(MOD(G70/Time_between_applications,1)=0,OR((Conc_sw!G70<Conc_sw!$C$10),(Conc_sw!G70=Conc_sw!$C$10))),Input_drift,0)) -> 0 | J70: =(H70+I70)/DEPTHwater -> 0 | K70: 53162.64626 | L70: =IF((K70)/(1+Kpsusp*SUSPwater*0.000001)<(SOL*1000),(K70)/(1+Kpsusp*SUSPwater*0.000001),(SOL*1000)) -> 53161.84884
G71: 65 | H71: 0 | I71: =IF(Single_Multi="Single",0,IF(AND(MOD(G71/Time_between_applications,1)=0,OR((Conc_sw!G71<Conc_sw!$C$10),(Conc_sw!G71=Conc_sw!$C$10))),Input_drift,0)) -> 0 | J71: 0 | K71: =(J71+K70)*EXP(-ktotal_water*$G$7) -> 50665.79894 | L71: 50665.03896
G72: 66 | H72: 0 | I72: =IF(Single_Multi="Single",0,IF(AND(MOD(G72/Time_between_applications,1)=0,OR((Conc_sw!G72<Conc_sw!$C$10),(Conc_sw!G72=Conc_sw!$C$10))),Input_drift,0)) -> 0 | J72: 0 | K72: 48286.21904 | L72: 48285.49475
G73: 67 | H73: 0 | I73: =IF(Single_Multi="Single",0,IF(AND(MOD(G73/Time_between_applications,1)=0,OR((Conc_sw!G73<Conc_sw!$C$10),(Conc_sw!G73=Conc_sw!$C$10))),Input_drift,0)) -> 0 | J73: 0 | K73: 46018.39895 | L73: 46017.70869
G74: 68 | H74: 0 | I74: =IF(Single_Multi="Single",0,IF(AND(MOD(G74/Time_between_applications,1)=0,OR((Conc_sw!G74<Conc_sw!$C$10),(Conc_sw!G74=Conc_sw!$C$10))),Input_drift,0)) -> 0 | J74: 0 | K74: 43857.08976 | L74: 43856.43191
G75: 69 | H75: 0 | I75: =IF(Single_Multi="Single",0,IF(AND(MOD(G75/Time_between_applications,1)=0,OR((Conc_sw!G75<Conc_sw!$C$10),(Conc_sw!G75=Conc_sw!$C$10))),Input_drift,0)) -> 0 | J75: 0 | K75: 41797.28903 | L75: 41796.66208
G76: 70 | H76: 0 | I76: =IF(Single_Multi="Single",0,IF(AND(MOD(G76/Time_between_applications,1)=0,OR((Conc_sw!G76<Conc_sw!$C$10),(Conc_sw!G76=Conc_sw!$C$10))),Input_drift,0)) -> 0 | J76: 0 | K76: 39834.22932 | L76: 39833.63181
G77: 71 | H77: 0 | I77: =IF(Single_Multi="Single",0,IF(AND(MOD(G77/Time_between_applications,1)=0,OR((Conc_sw!G77<Conc_sw!$C$10),(Conc_sw!G77=Conc_sw!$C$10))),Input_drift,0)) -> 0 | J77: 0 | K77: 37963.36705 | L77: 37962.79761
G78: 72 | H78: 0 | I78: =IF(Single_Multi="Single",0,IF(AND(MOD(G78/Time_between_applications,1)=0,OR((Conc_sw!G78<Conc_sw!$C$10),(Conc_sw!G78=Conc_sw!$C$10))),Input_drift,0)) -> 0 | J78: 0 | K78: 36180.37207 | L78: 36179.82937
G79: 73 | H79: 0 | I79: =IF(Single_Multi="Single",0,IF(AND(MOD(G79/Time_between_applications,1)=0,OR((Conc_sw!G79<Conc_sw!$C$10),(Conc_sw!G79=Conc_sw!$C$10))),Input_drift,0)) -> 0 | J79: 0 | K79: 34481.11758 | L79: 34480.60037
G80: 74 | H80: 0 | I80: =IF(Single_Multi="Single",0,IF(AND(MOD(G80/Time_between_applications,1)=0,OR((Conc_sw!G80<Conc_sw!$C$10),(Conc_sw!G80=Conc_sw!$C$10))),Input_drift,0)) -> 0 | J80: 0 | K80: 32861.67061 | L80: 32861.1777
G81: 75 | H81: 0 | I81: =IF(Single_Multi="Single",0,IF(AND(MOD(G81/Time_between_applications,1)=0,OR((Conc_sw!G81<Conc_sw!$C$10),(Conc_sw!G81=Conc_sw!$C$10))),Input_drift,0)) -> 0 | J81: 0 | K81: 31318.28291 | L81: 31317.81315
G82: 76 | H82: 0 | I82: =IF(Single_Multi="Single",0,IF(AND(MOD(G82/Time_between_applications,1)=0,OR((Conc_sw!G82<Conc_sw!$C$10),(Conc_sw!G82=Conc_sw!$C$10))),Input_drift,0)) -> 0 | J82: 0 | K82: 29847.38226 | L82: 29846.93456
G83: 77 | H83: 0 | I83: =IF(Single_Multi="Single",0,IF(AND(MOD(G83/Time_between_applications,1)=0,OR((Conc_sw!G83<Conc_sw!$C$10),(Conc_sw!G83=Conc_sw!$C$10))),Input_drift,0)) -> 0 | J83: 0 | K83: 28445.56422 | L83: 28445.13755
G84: 78 | H84: 0 | I84: =IF(Single_Multi="Single",0,IF(AND(MOD(G84/Time_between_applications,1)=0,OR((Conc_sw!G84<Conc_sw!$C$10),(Conc_sw!G84=Conc_sw!$C$10))),Input_drift,0)) -> 0 | J84: 0 | K84: 27109.58425 | L84: 27109.17761
G85: 79 | H85: 0 | I85: =IF(Single_Multi="Single",0,IF(AND(MOD(G85/Time_between_applications,1)=0,OR((Conc_sw!G85<Conc_sw!$C$10),(Conc_sw!G85=Conc_sw!$C$10))),Input_drift,0)) -> 0 | J85: 0 | K85: 25836.35017 | L85: 25835.96263
G86: 80 | H86: 0 | I86: =IF(Single_Multi="Single",0,IF(AND(MOD(G86/Time_between_applications,1)=0,OR((Conc_sw!G86<Conc_sw!$C$10),(Conc_sw!G86=Conc_sw!$C$10))),Input_drift,0)) -> 0 | J86: 0 | K86: 24622.91505 | L86: 24622.54571
G87: 81 | H87: 0 | I87: =IF(Single_Multi="Single",0,IF(AND(MOD(G87/Time_between_applications,1)=0,OR((Conc_sw!G87<Conc_sw!$C$10),(Conc_sw!G87=Conc_sw!$C$10))),Input_drift,0)) -> 0 | J87: 0 | K87: 23466.47037 | L87: 23466.11838
G88: 82 | H88: 0 | I88: =IF(Single_Multi="Single",0,IF(AND(MOD(G88/Time_between_applications,1)=0,OR((Conc_sw!G88<Conc_sw!$C$10),(Conc_sw!G88=Conc_sw!$C$10))),Input_drift,0)) -> 0 | J88: 0 | K88: 22364.3395 | L88: 22364.00404
G89: 83 | H89: 0 | I89: =IF(Single_Multi="Single",0,IF(AND(MOD(G89/Time_between_applications,1)=0,OR((Conc_sw!G89<Conc_sw!$C$10),(Conc_sw!G89=Conc_sw!$C$10))),Input_drift,0)) -> 0 | J89: 0 | K89: 21313.97152 | L89: 21313.65181
G90: 84 | H90: 0 | I90: =IF(Single_Multi="Single",0,IF(AND(MOD(G90/Time_between_applications,1)=0,OR((Conc_sw!G90<Conc_sw!$C$10),(Conc_sw!G90=Conc_sw!$C$10))),Input_drift,0)) -> 0 | J90: 0 | K90: 20312.93533 | L90: 20312.63064
G91: 85 | H91: 0 | I91: =IF(Single_Multi="Single",0,IF(AND(MOD(G91/Time_between_applications,1)=0,OR((Conc_sw!G91<Conc_sw!$C$10),(Conc_sw!G91=Conc_sw!$C$10))),Input_drift,0)) -> 0 | J91: 0 | K91: 19358.914 | L91: 19358.62362
G92: 86 | H92: 0 | I92: =IF(Single_Multi="Single",0,IF(AND(MOD(G92/Time_between_applications,1)=0,OR((Conc_sw!G92<Conc_sw!$C$10),(Conc_sw!G92=Conc_sw!$C$10))),Input_drift,0)) -> 0 | J92: 0 | K92: 18449.69943 | L92: 18449.42269
G93: 87 | H93: 0 | I93: =IF(Single_Multi="Single",0,IF(AND(MOD(G93/Time_between_applications,1)=0,OR((Conc_sw!G93<Conc_sw!$C$10),(Conc_sw!G93=Conc_sw!$C$10))),Input_drift,0)) -> 0 | J93: 0 | K93: 17583.18721 | L93: 17582.92347
G94: 88 | H94: 0 | I94: =IF(Single_Multi="Single",0,IF(AND(MOD(G94/Time_between_applications,1)=0,OR((Conc_sw!G94<Conc_sw!$C$10),(Conc_sw!G94=Conc_sw!$C$10))),Input_drift,0)) -> 0 | J94: 0 | K94: 16757.37177 | L94: 16757.12042
G95: 89 | H95: 0 | I95: =IF(Single_Multi="Single",0,IF(AND(MOD(G95/Time_between_applications,1)=0,OR((Conc_sw!G95<Conc_sw!$C$10),(Conc_sw!G95=Conc_sw!$C$10))),Input_drift,0)) -> 0 | J95: 0 | K95: 15970.34175 | L95: 15970.1022
G96: 90 | H96: 0 | I96: =IF(Single_Multi="Single",0,IF(AND(MOD(G96/Time_between_applications,1)=0,OR((Conc_sw!G96<Conc_sw!$C$10),(Conc_sw!G96=Conc_sw!$C$10))),Input_drift,0)) -> 0 | J96: 0 | K96: 15220.27553 | L96: 15220.04723
G97: 91 | H97: 0 | I97: =IF(Single_Multi="Single",0,IF(AND(MOD(G97/Time_between_applications,1)=0,OR((Conc_sw!G97<Conc_sw!$C$10),(Conc_sw!G97=Conc_sw!$C$10))),Input_drift,0)) -> 0 | J97: 0 | K97: 14505.43707 | L97: 14505.21949
G98: 92 | H98: 0 | I98: =IF(Single_Multi="Single",0,IF(AND(MOD(G98/Time_between_applications,1)=0,OR((Conc_sw!G98<Conc_sw!$C$10),(Conc_sw!G98=Conc_sw!$C$10))),Input_drift,0)) -> 0 | J98: 0 | K98: 13824.17185 | L98: 13823.96449
G99: 93 | H99: 0 | I99: =IF(Single_Multi="Single",0,IF(AND(MOD(G99/Time_between_applications,1)=0,OR((Conc_sw!G99<Conc_sw!$C$10),(Conc_sw!G99=Conc_sw!$C$10))),Input_drift,0)) -> 0 | J99: 0 | K99: 13174.90307 | L99: 13174.70545
G100: 94 | H100: 0 | I100: =IF(Single_Multi="Single",0,IF(AND(MOD(G100/Time_between_applications,1)=0,OR((Conc_sw!G100<Conc_sw!$C$10),(Conc_sw!G100=Conc_sw!$C$10))),Input_drift,0)) -> 0 | J100: 0 | K100: 12556.12798 | L100: 12555.93964
G101: 95 | H101: 0 | I101: =IF(Single_Multi="Single",0,IF(AND(MOD(G101/Time_between_applications,1)=0,OR((Conc_sw!G101<Conc_sw!$C$10),(Conc_sw!G101=Conc_sw!$C$10))),Input_drift,0)) -> 0 | J101: 0 | K101: 11966.41439 | L101: 11966.2349
G102: 96 | H102: =IF(G102=((Time_between_applications*(Number_of_applications-1))+4),Input_runoff,0) -> 0 | I102: =IF(Single_Multi="Single",0,IF(AND(MOD(G102/Time_between_applications,1)=0,OR((Conc_sw!G102<Conc_sw!$C$10),(Conc_sw!G102=Conc_sw!$C$10))),Input_drift,0)) -> 0 | J102: =(H102+I102)/DEPTHwater -> 0 | K102: 11404.39742 | L102: =IF((K102)/(1+Kpsusp*SUSPwater*0.000001)<(SOL*1000),(K102)/(1+Kpsusp*SUSPwater*0.000001),(SOL*1000)) -> 11404.22635
G103: 97 | H103: 0 | I103: =IF(Single_Multi="Single",0,IF(AND(MOD(G103/Time_between_applications,1)=0,OR((Conc_sw!G103<Conc_sw!$C$10),(Conc_sw!G103=Conc_sw!$C$10))),Input_drift,0)) -> 0 | J103: 0 | K103: =(J103+K102)*EXP(-ktotal_water*$G$7) -> 10868.77624 | L103: 10868.61321
G104: 98 | H104: 0 | I104: =IF(Single_Multi="Single",0,IF(AND(MOD(G104/Time_between_applications,1)=0,OR((Conc_sw!G104<Conc_sw!$C$10),(Conc_sw!G104=Conc_sw!$C$10))),Input_drift,0)) -> 0 | J104: 0 | K104: 10358.31115 | L104: 10358.15578
G105: 99 | H105: 0 | I105: =IF(Single_Multi="Single",0,IF(AND(MOD(G105/Time_between_applications,1)=0,OR((Conc_sw!G105<Conc_sw!$C$10),(Conc_sw!G105=Conc_sw!$C$10))),Input_drift,0)) -> 0 | J105: 0 | K105: 9871.820667 | L105: 9871.672592
G106: 100 | H106: 0 | I106: =IF(Single_Multi="Single",0,IF(AND(MOD(G106/Time_between_applications,1)=0,OR((Conc_sw!G106<Conc_sw!$C$10),(Conc_sw!G106=Conc_sw!$C$10))),Input_drift,0)) -> 0 | J106: 0 | K106: 9408.178791 | L106: 9408.037671

Sheet Crop parameters (hidden)
B1: FERTILIZER ENVIRONMENTAL EXPOSURE (FEE) TOOL
B2: CROP PARAMETERS
E4: Micronutrient concentration ** | H4: Crop Yield (ww) *** | K4: Crop growth stage (BBCH codes) [% crop interception] ****
B5: Crop | C5: References | D5: Drift percentage * | E5: Copper | F5: Manganese | G5: Zinc | H5: Low | I5: High | J5: Medium | K5: Bare soil, BBCH 00-09 | L5: Minimal crop cover, BBCH 10-19 | M5: Intermediate crop cover, BBCH 20-39 | N5: Full canopy, BBCH 40-89
D6: [%] | E6: [g/t] | F6: [g/t] | G6: [g/t] | H6: [t/ha/y] | I6: [t/ha/y] | J6: [t/ha/y]
B7: SPERC 1: Outdoor use - direct application of solid fertilizers to soil; surface spreading | D7: 0 | K7: 0 | L7: 10 | M7: 25 | N7: 40
B8: SPERC 2: Outdoor use - direct application of solid or liquid fertilizers to soil; incorporation, placement, mixing, seed treatment, drip irrigation | D8: 0 | K8: 0 | L8: 0 | M8: 0 | N8: 0
B9: SPERC 3: Outdoor use - application of fertilizers by helicopter | D9: 33.2 | K9: 0 | L9: 20 | M9: 50 | N9: 70
B10: SPERC 4: Outdoor use - spray application of liquid fertilizers; soil surface spreading, sprinkler, pivot, foliar spray, slurry | D10: 15.725 | K10: 0 | L10: 20 | M10: 40 | N10: 65
B11: Generic crop
B12: ---------
B13: Cereals, spring | C13: 13, 18 | D13: 2.759 | E13: 11 | F13: 31 | G13: 24.66666667 | H13: 1.86 | I13: 6.464 | J13: 3.5239 | K13: 0 | L13: 0 | M13: 20 | N13: 70
B14: Cereals, winter | C14: 13, 18, 20 | D14: 2.759 | E14: 11 | F14: 21.14333333 | G14: 24 | H14: 1.27675 | I14: 8.031333333 | J14: 4.163416667 | K14: 0 | L14: 0 | M14: 20 | N14: 70
B15: Citrus | C15: 8, 10, 16, 18 | D15: 15.725 | E15: 0.53 | F15: 0.5625 | G15: 0.85 | H15: 8.833864009 | I15: 43.24749612 | J15: 20.26422655 | K15: 0 | L15: 80 | M15: 80 | N15: 80
B16: Field beans | C16: 16 | D16: 2.759 | E16: 13 | F16: 13 | G16: 38 | H16: 0.5736666667 | I16: 5.42 | J16: 2.456666667 | K16: 0 | L16: 25 | M16: 40 | N16: 70
B17: Grass / alfalfa | C17: 13, 16 | D17: 2.759 | E17: 6.5 | F17: 63 | G17: 39 | H17: 1.972833333 | I17: 27.35 | J17: 5.289416667 | K17: 0 | L17: 40 | M17: 60 | N17: 75
B18: Hops | C18: 14 | D18: 19.326 | E18: 319 | F18: 84 | G18: 38 | H18: 0.658 | I18: 1.963333333 | J18: 1.390833333 | K18: 0 | L18: 20 | M18: 50 | N18: 70
B19: Legumes | C19: 16 | D19: 2.759 | E19: 11 | F19: 13 | G19: 46 | H19: 1.2874 | I19: 4.431733333 | J19: 2.330333333 | K19: 0 | L19: 25 | M19: 50 | N19: 70
B20: Maize (grain) | C20: 13, 16, 11, 18 | D20: 2.759 | E20: 5.3 | F20: 9.3 | G20: 17.5 | H20: 3.812666667 | I20: 11.21466667 | J20: 7.4935 | K20: 0 | L20: 25 | M20: 50 | N20: 75
B21: Maize (silage) | C21: 11, 17 | D21: 2.759 | E21: 7.65 | F21: 91.8 | G21: 35.2 | H21: 7.495333333 | I21: 52.74666667 | J21: 33.87 | K21: 0 | L21: 25 | M21: 50 | N21: 75
B22: Oil seed rape, spring | C22: 18 | D22: 2.759 | E22: 5 | F22: 33 | G22: 30 | H22: 1.713333333 | I22: 2.966666667 | J22: 1.931333333 | K22: 0 | L22: 40 | M22: 70 | N22: 75
B23: Oil seed rape, winter | C23: 18 | D23: 2.759 | E23: 5 | F23: 33 | G23: 30 | H23: 2.044 | I23: 4.043333333 | J23: 2.98 | K23: 0 | L23: 40 | M23: 70 | N23: 75
B24: Olives | C24: 5 | D24: 15.725 | F24: 2.05 | G24: 3.1 | H24: 1.223716019 | I24: 8.69651569 | J24: 1.906672555 | K24: 0 | L24: 70 | M24: 70 | N24: 70
B25: Pome / stone fruit, (early) | C25: 2, 4, 9, 12, 13, 18, 21 | D25: 29.197 | E25: 0.7085714286 | F25: 1.14 | G25: 1.665714286 | H25: 2.555654626 | I25: 20.76912677 | J25: 8.779508709 | K25: 0 | L25: 20 | M25: 40 | N25: 65
B26: Pome / stone fruit (late) | C26: 2, 4, 9, 12, 13, 18, 21 | D26: 15.725 | E26: 0.7085714286 | F26: 1.14 | G26: 1.665714286 | H26: 2.555654626 | I26: 20.76912677 | J26: 8.779508709 | K26: 0 | L26: 20 | M26: 40 | N26: 65
B27: Potatoes | C27: 16, 18, 19 | D27: 2.759 | E27: 3.67 | F27: 15.58 | G27: 1.9 | H27: 10.26266667 | I27: 44 | J27: 25.60783333 | K27: 0 | L27: 15 | M27: 50 | N27: 70
B28: Soybeans | C28: 16, 6, 18 | D28: 2.759 | E28: 39.75 | F28: 33 | G28: 36.93 | H28: 0.9466666667 | I28: 3.489333333 | J28: 2.213333333 | K28: 0 | L28: 20 | M28: 50 | N28: 75
B29: Sugar beet | C29: 15, 3, 21 | D29: 2.759 | E29: 0.75 | F29: 8 | G29: 3.5 | H29: 35.881 | I29: 90.35033333 | J29: 60.74716667 | K29: 0 | L29: 20 | M29: 70 | N29: 75
B30: Sunflower | C30: 16 | D30: 2.759 | E30: 9 | F30: 16 | G30: 46 | H30: 0.743 | I30: 2.599333333 | J30: 2.26 | K30: 0 | L30: 20 | M30: 50 | N30: 75
B31: Tobacco | C31: 13 | D31: 2.759 | E31: 21 | F31: 184 | G31: 69 | H31: 1.383666667 | I31: 2.583666667 | J31: 1.963 | K31: 0 | L31: 20 | M31: 70 | N31: 75
B32: Vegetables, bulb | C32: 1, 13 | D32: 2.759 | E32: 1 | F32: 2.175 | G32: 3.995 | H32: 7.6879477 | I32: 29.54443837 | J32: 17.2950458 | K32: 0 | L32: 10 | M32: 25 | N32: 40
B33: Vegetables, fruiting | C33: 13, 18, 21 | D33: 2.759 | E33: 1.403333333 | F33: 2.4875 | G33: 3.215 | H33: 12.71914016 | I33: 234.0520741 | J33: 38.59363412 | K33: 0 | L33: 25 | M33: 50 | N33: 70
B34: Vegetables, leafy | C34: 11, 13, 21 | D34: 2.759 | E34: 1.2625 | F34: 3.5925 | G34: 4.6 | H34: 8.221122609 | I34: 38.81382558 | J34: 18.39480669 | K34: 0 | L34: 25 | M34: 40 | N34: 70
B35: Vegetables, root | C35: 21 | D35: 2.759 | E35: 0.45 | F35: 1.43 | G35: 2.4 | H35: 10.57777235 | I35: 51.01739631 | J35: 27.30399767 | K35: 0 | L35: 25 | M35: 50 | N35: 70
B36: Vines, early applications | C36: 21 | D36: 2.699 | E36: 1.27 | F36: 0.71 | G36: 0.7 | H36: 1.744133644 | I36: 14.35057725 | J36: 6.051454747 | K36: 0 | L36: 40 | M36: 50 | N36: 60
B37: Vines, late applications | C37: 21 | D37: 8.028 | E37: 1.27 | F37: 0.71 | G37: 0.7 | H37: 1.744133644 | I37: 14.35057725 | J37: 6.051454747 | K37: 0 | L37: 40 | M37: 50 | N37: 60
B38: Forest (aerial application) | C38: ***** | D38: 33.2 | E38: 0 | F38: 0 | G38: 0 | H38: 0 | I38: 0 | J38: 0 | K38: 0 | L38: 20 | M38: 50 | N38: 70
N39: 
B40: * Rautmann drift values, single application (Rautmann et al, 2001)
B41: ** Full list of all crop micronutrient concentration litarature refer to sheet "References_cropconc"
B42: *** Eurostat database on Crop statistics (average yield data 2012-'14)
B43: **** EFSA DegT50 guidance document (2014)
B44: ***** No crop offtake, considering long life span of forest trees
K46: Tool developed by ARCHE Consulting © 2017

Sheet SpERC details (hidden)
B1: FERTILIZER ENVIRONMENTAL EXPOSURE (FEE) TOOL
B2: SPERC DETAILS
B4: Runoff scenario | C4: % runoff 30 days | E4: Vapour pressure | F4: Volatilization (%)
B5: SPERC 1: Outdoor use - direct application of solid fertilizers to soil; surface spreading | C5: =Ksoil_water_runoff*30*100 -> 158.7119093 | E5: Default (inorganics) | F5: 0 | H5: Single
B6: SPERC 2: Outdoor use - direct application of solid or liquid fertilizers to soil; incorporation, placement, mixing, seed treatment, drip irrigation | C6: 0 | E6: < 0.01 mPa | F6: 1 | H6: Multiple
B7: SPERC 3: Outdoor use - application of fertilizers by helicopter | C7: =Ksoil_water_runoff*30*100 -> 158.7119093 | E7: 0.01 - 0.1 mPa | F7: 10
B8: SPERC 4: Outdoor use - spray application of liquid fertilizers; soil surface spreading, sprinkler, pivot, foliar spray, slurry | C8: =Ksoil_water_runoff*30*100 -> 158.7119093 | E8: 0.1 - 1 mPa | F8: 20 | H8: 50
E9: 1 - 10 mPa | F9: 50 | H9: 75
E10: > 10 mPa | F10: 100 | H10: 90
F19: Tool developed by ARCHE Consulting © 2017

Sheet Micro-nutrient endpoints (hidden)
B1: FERTILIZER ENVIRONMENTAL EXPOSURE (FEE) TOOL
B2: MICRO-NUTRIENT STANDARD PARAMETERS
B4: Micro-nutrient * | D4: Substance properties | J4: Exposure assessment (PEC regional) | N4: Effect assessment
D5: Molecular weight [g/mol] | E5: Solubility at 25°C [mg/L] ** | F5: Vapour pressure at 25°C [Pa] ** | G5: Henry coefficient [Pa*m3/mol] * | H5: Kpsoil [L/kg dw] | I5: Kp susp matter [L/kg dw] | J5: PEC soil [mg/kg dw] *** | K5: PEC freshwater [µg/L] | L5: PEC sediment [mg/kg dw] | M5: Added/total approach | N5: PNEC soil [mg/kg dw] | O5: PNEC freshwater [µg/L] | P5: PNEC sediment [mg/kg dw]
B6: Copper | C6: Cu | D6: 63.55 | E6: 100 | F6: 1e-06 | G6: 4e-06 | H6: 2120 | I6: 30246 | J6: 14 | K6: 2.9 | L6: 67.5 | M6: TOTAL | N6: 65 | O6: 7.8 | P6: 87
B7: Manganese | C7: Mn | D7: 54.94 | E7: 100 | F7: 1e-06 | G7: 4e-06 | H7: 1355 | I7: =POWER(10,4.45) -> 28183.82931 | J7: 0 | K7: 0 | L7: 0 | M7: ADDED | N7: 12.4 | O7: 12.8 | P7: 36.1
B8: Zinc | C8: Zn | D8: 65.38 | E8: 100 | F8: 1e-06 | G8: 4e-06 | H8: 158.5 | I8: 110000 | J8: 41.3 | K8: 3.4 | L8: 45 | M8: ADDED | N8: 107 | O8: 20.6 | P8: 235.6
B9: -> Other | D9: Provide manual input | E9: Provide manual input | F9: Provide manual input | G9: Provide manual input (or enter mol.weight, solubility and vapour pressure) | H9: Provide manual input for Kpsoil or Koc | I9: Provide manual input | J9: Provide manual input | K9: Provide manual input | L9: Provide manual input | N9: Provide manual input | O9: Provide manual input | P9: Provide manual input
B10: * Unless otherwise stated, micro-nutrient properties are based on information from the REACH dissemination website; please check carefully for consistency with most recent dossier information
B11: ** Default values for inorganics from R7-13-2 Information requirements, metals
B12: *** PEC soil regional selected from GEMAS dataset
L18: Tool developed by ARCHE Consulting © 2017

Sheet Biodegradation (hidden)
C1: FERTILIZER ENVIRONMENTAL EXPOSURE (FEE) TOOL
C2: BIODEGRADATION IN SOIL AND SURFACE WATER
C4: Half-lives (days) based on results from standardised biodegradation screening tests *
B6: SOIL | C6: Kpsoil (L/kg) | D6: Not biodegradable | E6: Readily biodegradable | F6: Readily biodegradable, failing 10-d window | G6: Inherently biodegradable
C7: Kp ≤ 100 | D7: 1000000 | E7: 30 | F7: 90 | G7: 300
C8: Kp 100 - 1000 | D8: 1000000 | E8: 300 | F8: 900 | G8: 3000
C9: Kp 1000 - 10000 | D9: 1000000 | E9: 3000 | F9: 9000 | G9: 30000
C10: Kp 10000 - 100000 | D10: 1000000 | E10: 30000 | F10: 90000 | G10: 300000
C11: SURFACE WATER | D11: 1000000 | E11: 15 | F11: 50 | G11: 150
C13: * Table adapted from REACH guidance R.16, Table R.16-12 (soil) and Table R.16-11 (surface water)
G18: Tool developed by ARCHE Consulting © 2017

Sheet References_cropconc
A1: Reference # | B1: Author(s) | C1: Year | D1: Title | E1: Journal/Book/Website | F1: Publisher
A2: 1 | B2: Andrioli, F.F. et al. | C2: 2008 | D2: Curve of growth and uptake for the garlic crop under field conditions | E2: Scientia Agraria 9(3): 385-393; http://revistas.ufpr.br/agraria/article/view/11538
A3: 2 | B3: Aydinalp, C. & Marinova, S. | C3: 2012 | D3: Concentration of Cu and Zn in some fruits and vegetables grown in Northwestern Turkey | E3: Bulgarian Journal of Agricultural Science 18(5): 749-751; http://www.agrojournal.org/18/05-15-12.pdf
A4: 3 | B4: Beiss, U. | C4: 1978 | D4: Sugar Beet - Nutritional Summary | E4: http://www.yara.co.uk/crop-nutrition/crops/sugarbeet/key-facts/sugar-beet-nutritional-summary/ | F4: Yara, United Kingdom
A5: 4 | B5: Bozkurt, M.A. et al. | C5: 2010 | D5: The Use of Sewage Sludge as an Organic Matter Source in Apple Trees | E5: Polish Journal of Environmental Studies 19(2): 267-274; http://www.pjoes.com/pdf/19.2/267-274.pdf
A6: 5 | B6: Cadenas Caro, F.I. | C6: 2013 | D6: Effect of different crop loads on mineral element distribution in different organs of the olive tree at harvest | E6: pp. 64; http://repositorio.uchile.cl/handle/2250/116066 | F6: Universidad de Chile, Facultad de Ciencias Agronomicas Escuela de Pregrado, Chile
A7: 6 | B7: Ferguson, R.B. et al. | C7: 2006 | D7: G87-859 Fertilizer Recommendations for Soybean (Revised August 2006) | E7: Historical Materials from University of Nebraska-Lincoln Extension, paper 1714 http://digitalcommons.unl.edu/cgi/viewcontent.cgi?article=2712&context=extensionhist | F7: University of Nebraska, Lincoln, United States
A8: 7 | B8: Heard, J. & Hay, D. | C8: 2006 | D8: Nutrient Content, Uptake Pattern and Carbon:Nitrogen Ratios of Prairie Crops | E8: Proceedings of the 7th Annual Manitoba Agronomists Conference. http://umanitoba.ca/faculties/afs/MAC_proceedings/proceedings/2006/heard_hay_nutrient_uptake.pdf | F8: University of Manitoba, Canada
A9: 8 | B9: Labanauskas, C.K. & Handy, M.F. | C9: 1972 | D9: Nutrient removal by Valencia orange fruit from citrus orchards in California | E9: California Agriculture, Dec 1972; https://ucanr.edu/repositoryfiles/ca2612p3-63995.pdf | F9: University of California, Division of Agricultural Sciences, United States
A10: 9 | B10: Lehnert, R. | C10: 2010 | D10: Nutrient needs by apple trees | E10: http://www.goodfruit.com/nutrient-needs-by-apple-trees/ | F10: Washington State Fruit Commission, United States
A11: 10 | B11: Mattos Jr., D. et al. | C11: 2003 | D11: Nutrient content of biomass components of Hamlin sweet orange trees | E11: Scientia Agricola 60(1): 155-160; http://www.scielo.br/pdf/sa/v60n1/14557.pdf
A12: 11 | B12: Mitchell, C.C. | C12: 2011 | D12: Nutrient Removal by Alabama Crops | E12: ANR-0449; http://www.aces.edu/pubs/docs/A/ANR-0449/ANR-0449.pdf | F12: Alabama Cooperative Extension System, Alabama A&M University and Auburn University, United States
A13: 12 | B13: Nour, V. et al. | C13: 2010 | D13: Compositional Characteristics of Fruits of several Apple (Malus domestica Borkh.) Cultivars | E13: Notulae Botanicae Horti Agrobotanici Cluj-Napoca 38(3): 228-233; http://www.notulaebotanicae.ro/index.php/nbha/article/view/4762/5097
A14: 13 | B14: Osmond, D.L. & Kang, J. | C14: 2008 | D14: Soil facts, Nutrient Removal by Crops in North Carolina | E14: https://content.ces.ncsu.edu/nutrient-removal-by-crops-in-north-carolina | F14: North Carolina State University and North Carolina Cooperative Extension Service, United States
A15: 14 | B15: Portner, J., Roßbauer, G., Bauer, M. | C15: 2006 | D15: Nährstoffaufnahme des Hopfens (in German) | E15: Hopfen-Rundschau 5: 116-120; https://www.lfl.bayern.de/mam/cms07/ipz/dateien/artikelnaehrstoffaufnahme.pdf | F15: Bayerische Landesanstalt für Landwirtschaft, Germany
A16: 15 | B16: Quade, J. (Ed) | C16: 1993 | D16: Faustzahlen für Landwirtschaft und Gartenbau (in German) | E16: Re-edition 12, 618 pp | F16: Hydro Agri Dülmen GmbH, Germany
A17: 16 | B17: Wichmann, W. (Ed) | C17: 1992 | D17: IFA World Fertilizer Use Manual | E17: 632 pp; http://www.fertilizer.org/imis20/images/Library_Downloads/1992_ifa_world_fertilizer_use_manual.pdf?WebsiteKey=411e9724-4bda-422f-abfc-8152ed74f306&=404%3bhttp%3a%2f%2fwww.fertilizer.org%3a80%2fen%2fimages%2fLibrary_Downloads%2f1992_ifa_world_fertilizer_use_manual.pdf | F17: International Fertilizer Industry Association (IFA), France
A18: 17 | B18: Yara International | C18: 2017 | D18: Unpublished average nutrient removal data based on lab analyses (pers. comm.) | F18: Yara International, Research and Development, Germany
A19: 18 | B19: Yara International | C19: 2015 | D19: Unpublished average nutrient removal data based on lab analyses (pers. comm.) | F19: Yara International, Research and Development, Germany
A20: 19 | B20: Yara International | C20: 2013 | D20: Unpublished average nutrient removal data based on lab analyses (pers. comm.) | F20: Yara International, Research and Development, Germany
A21: 20 | B21: Yara International | C21: 2010 | D21: Unpublished average nutrient removal data based on lab analyses (pers. comm.) | F21: Yara International, Research and Development, Germany
A22: 21 | B22: USDA | C22: 2009 | D22: United States Department of Agriculture, National Nutrient Database for Standard Reference 28 | E22: https://ndb.nal.usda.gov/ndb/nutrients/index | F22: Agricultural Research Service, United States
